[Event "Championnat d'Europe Rapide"]
[Date "2024.12.07"]
[White "Marzakov, Mihail"]
[Black "Subelj, Jan"]
[WhiteElo "1997"]
[BlackElo "2526"]
[Round "1.50"]
[Result "0-1"]
[TimeControl "900+10"]

1. d4 {[%emt 00:00:01] [%clk 00:15:17]} Nf6 {[%emt 00:00:06] [%clk 00:15:15]} 2.
c4 {[%emt 00:00:02] [%clk 00:15:24]} e6 {[%emt 00:00:04] [%clk 00:15:22]} 3. Nc3
{[%clk 00:15:33]} Bb4 {[%emt 00:00:03] [%clk 00:15:29]} 4. e3 {[%emt 00:00:01]
[%clk 00:15:42]} O-O {[%emt 00:00:08] [%clk 00:15:31]} 5. Nge2 {[%emt 00:00:02]
[%clk 00:15:50]} Re8 {[%emt 00:00:03] [%clk 00:15:38]} 6. a3 {[%emt 00:00:01]
[%clk 00:15:59]} Bf8 {[%emt 00:00:05] [%clk 00:15:44]} 7. e4 {[%emt 00:02:55]
[%clk 00:13:14]} d6 {[%emt 00:00:11] [%clk 00:15:42]} 8. f3 {[%emt 00:00:07]
[%clk 00:13:18]} c5 {[%emt 00:02:19] [%clk 00:13:33]} 9. Be3 {[%emt 00:02:20]
[%clk 00:11:07]} Nc6 {[%emt 00:02:11] [%clk 00:11:32]} 10. Qd2 {[%emt 00:02:05]
[%clk 00:09:12]} d5 {[%emt 00:03:23] [%clk 00:08:20]} 11. dxc5 {[%emt 00:01:50]
[%clk 00:07:32]} Ne5 {[%emt 00:02:13] [%clk 00:06:17]} 12. Nf4 {[%emt 00:03:40]
[%clk 00:04:03]} dxc4 {[%emt 00:03:55] [%clk 00:02:33]} 13. Qxd8 {[%emt
00:01:01] [%clk 00:03:12]} Rxd8 {[%emt 00:00:01] [%clk 00:02:41]} 14. Rd1 {[%emt
00:00:26] [%clk 00:02:55]} Rxd1+ {[%emt 00:00:36]} 15. Kxd1 {[%emt 00:00:08]
[%clk 00:02:55]} Bd7 {[%emt 00:00:02] [%clk 00:02:27]} 16. Kc2 {[%emt 00:01:18]
[%clk 00:01:46]} Rc8 {[%emt 00:00:02] [%clk 00:02:35]} 17. Bd4 {[%clk 00:01:56]}
Nc6 {[%emt 00:00:03] [%clk 00:02:43]} 18. Be3 {[%emt 00:00:04] [%clk 00:02:02]}
Na5 {[%emt 00:00:29] [%clk 00:02:23]} 19. e5 {[%emt 00:00:10] [%clk 00:02:02]}
Nd5 {[%emt 00:00:20] [%clk 00:02:13]} 20. Nfxd5 {[%emt 00:00:50] [%clk
00:01:22]} exd5 {[%emt 00:00:02] [%clk 00:02:21]} 21. Nxd5 {[%emt 00:00:15]
[%clk 00:01:18]} Bxc5 {[%emt 00:00:02] [%clk 00:02:29]} 22. Be2 {[%emt 00:00:59]
[%clk 00:00:29]} Be6 {[%emt 00:00:54] [%clk 00:01:45]} 23. Bxc5 {[%emt 00:00:21]
[%clk 00:00:18]} Rxc5 {[%emt 00:00:02] [%clk 00:01:54]} 24. Nc3 {[%emt 00:00:09]
[%clk 00:00:18]} Rxe5 {[%emt 00:00:15] [%clk 00:01:48]} 25. Rd1 {[%emt 00:00:15]
[%clk 00:00:13]} Kf8 {[%emt 00:00:49] [%clk 00:01:09]} 26. Kd2 {[%emt 00:00:12]
[%clk 00:00:11]} Ke7 {[%emt 00:00:05] [%clk 00:01:13]} 27. f4 {[%emt 00:00:08]
[%clk 00:00:14]} Rc5 {[%emt 00:00:07] [%clk 00:01:17]} 28. Ke3 {[%emt 00:00:08]
[%clk 00:00:16]} a6 {[%emt 00:00:19] [%clk 00:01:08]} 29. g4 {[%emt 00:00:12]
[%clk 00:00:14]} g6 {[%emt 00:00:07] [%clk 00:01:11]} 30. Bf3 {[%emt 00:00:05]
[%clk 00:00:17]} f5 {[%emt 00:00:12] [%clk 00:01:10]} 31. g5 {[%emt 00:00:08]
[%clk 00:00:20]} Kf7 {[%emt 00:00:16] [%clk 00:01:04]} 32. h4 {[%emt 00:00:06]
[%clk 00:00:24]} Rc7 {[%emt 00:00:05] [%clk 00:01:09]} 33. Ne2 {[%emt 00:00:21]
[%clk 00:00:13]} Nb3 {[%emt 00:00:06] [%clk 00:01:13]} 34. Nd4 {[%emt 00:00:09]
[%clk 00:00:14]} Nxd4 {[%emt 00:00:15] [%clk 00:01:08]} 35. Kxd4 {[%emt
00:00:09] [%clk 00:00:15]} Ke7 {[%emt 00:00:02] [%clk 00:01:17]} 36. h5 {[%emt
00:00:11] [%clk 00:00:14]} gxh5 {[%emt 00:00:24] [%clk 00:01:01]} 37. Bxh5
{[%emt 00:00:01] [%clk 00:00:23]} c3 {[%emt 00:00:14] [%clk 00:00:58]} 38. bxc3
{[%emt 00:00:15] [%clk 00:00:17]} Rc4+ {[%emt 00:00:02] [%clk 00:01:07]} 39. Ke3
{[%emt 00:00:03] [%clk 00:00:22]} Rxc3+ {[%emt 00:00:07] [%clk 00:01:11]} 40.
Rd3 {[%emt 00:00:01] [%clk 00:00:31]} Rc1 {[%emt 00:00:15] [%clk 00:01:06]} 41.
Bf3 {[%emt 00:00:10] [%clk 00:00:31]} Bc4 {[%emt 00:00:18] [%clk 00:00:58]} 42.
Rd4 {[%emt 00:00:18] [%clk 00:00:23]} Rc3+ {[%emt 00:00:04] [%clk 00:01:04]} 43.
Kf2 {[%emt 00:00:03] [%clk 00:00:30]} b5 {[%emt 00:00:05] [%clk 00:01:10]} 44.
Bd5 {[%emt 00:00:24] [%clk 00:00:15]} Rxa3 {[%emt 00:00:58] [%clk 00:00:22]} 45.
Bxc4 {[%emt 00:00:05] [%clk 00:00:19]} Ra4 {[%emt 00:00:02] [%clk 00:00:31]} 46.
Rd5 {[%clk 00:00:28]} Rxc4 {[%emt 00:00:01] [%clk 00:00:40]} 47. Rxf5 {[%emt
00:00:01] [%clk 00:00:37]} b4 {[%emt 00:00:05] [%clk 00:00:45]} 48. Ra5 {[%emt
00:00:30] [%clk 00:00:16]} b3 {[%emt 00:00:06] [%clk 00:00:50]} 49. Rxa6 {[%emt
00:00:04] [%clk 00:00:22]} Rxf4+ {[%emt 00:00:05] [%clk 00:00:56]} 50. Ke3
{[%emt 00:00:05] [%clk 00:00:26]} Rb4 {[%emt 00:00:15]} 51. Ra1 {[%clk
00:00:23]} Ke6 {[%emt 00:00:02] [%clk 00:01:13]} 52. Kd3 {[%emt 00:00:03] [%clk
00:00:30]} Kf5 {[%clk 00:01:22]} 53. Kc3 {[%clk 00:00:40]} Rb7 {[%emt 00:00:02]
[%clk 00:01:31]} 54. Rb1 {[%emt 00:00:04] [%clk 00:00:46]} Kxg5 {[%emt 00:00:02]
[%clk 00:01:39]} 55. Rxb3 {[%clk 00:00:55]} Rxb3+ {[%emt 00:00:18] [%clk
00:01:32]} 0-1

[Site "Europe Echecs"]

[Event "Championnat d'Europe Rapide"]
[Date "2024.12.07"]
[White "Muradli, Mahammad"]
[Black "Sumskis, Rimvydas"]
[WhiteElo "2588"]
[BlackElo "1979"]
[Round "1.51"]
[Result "1-0"]
[TimeControl "900+10"]

1. c4 {[%emt 00:00:13] [%clk 00:15:07]} e5 {[%emt 00:00:04] [%clk 00:15:16]} 2.
d3 {[%emt 00:00:04] [%clk 00:15:09]} Nf6 {[%emt 00:00:26] [%clk 00:15:03]} 3.
Nf3 {[%emt 00:00:03] [%clk 00:15:15]} Nc6 {[%emt 00:00:03] [%clk 00:15:10]} 4.
a3 {[%emt 00:00:03] [%clk 00:15:23]} g6 {[%emt 00:00:36] [%clk 00:14:45]} 5. b4
{[%emt 00:00:35] [%clk 00:14:58]} d6 {[%emt 00:00:09] [%clk 00:14:46]} 6. Bb2
{[%emt 00:00:11] [%clk 00:14:57]} Bg7 {[%emt 00:00:20] [%clk 00:14:35]} 7. g3
{[%emt 00:00:05] [%clk 00:15:02]} Bg4 {[%emt 00:00:47] [%clk 00:13:59]} 8. Bg2
{[%emt 00:00:23] [%clk 00:14:49]} O-O {[%emt 00:00:03] [%clk 00:14:06]} 9. O-O
{[%emt 00:00:21] [%clk 00:14:37]} Qc8 {[%emt 00:00:10] [%clk 00:14:06]} 10. Re1
{[%emt 00:00:07] [%clk 00:14:40]} Re8 {[%emt 00:00:37] [%clk 00:13:39]} 11. Nbd2
{[%emt 00:01:44] [%clk 00:13:05]} h6 {[%emt 00:02:23] [%clk 00:11:27]} 12. Rc1
{[%emt 00:00:14] [%clk 00:13:00]} Rb8 {[%emt 00:00:15] [%clk 00:11:22]} 13. c5
{[%emt 00:02:10] [%clk 00:11:00]} Qd7 {[%emt 00:01:06] [%clk 00:10:27]} 14. cxd6
{[%emt 00:00:26] [%clk 00:10:43]} cxd6 {[%emt 00:00:08] [%clk 00:10:28]} 15. Nc4
{[%emt 00:00:08] [%clk 00:10:46]} Bxf3 {[%emt 00:01:26] [%clk 00:09:12]} 16.
Bxf3 {[%emt 00:00:31] [%clk 00:10:24]} d5 {[%emt 00:00:05] [%clk 00:09:18]} 17.
Ne3 {[%emt 00:02:50] [%clk 00:07:44]} a6 {[%emt 00:00:16] [%clk 00:09:12]} 18.
Qb3 {[%emt 00:00:38] [%clk 00:07:16]} Rbd8 {[%emt 00:00:59] [%clk 00:08:23]} 19.
Rc5 {[%emt 00:01:26] [%clk 00:06:00]} e4 {[%emt 00:00:48] [%clk 00:07:45]} 20.
Bxf6 {[%emt 00:00:14] [%clk 00:05:56]} Bxf6 {[%emt 00:00:03] [%clk 00:07:52]}
21. Rxd5 {[%emt 00:00:25] [%clk 00:05:41]} exf3 {[%emt 00:00:56] [%clk
00:07:05]} 22. Rxd7 {[%emt 00:00:04] [%clk 00:05:48]} Rxd7 {[%emt 00:00:02]
[%clk 00:07:13]} 23. exf3 {[%emt 00:00:11] [%clk 00:05:47]} Red8 {[%emt
00:00:39] [%clk 00:06:45]} 24. Ng4 {[%emt 00:00:40] [%clk 00:05:16]} Bg7 {[%emt
00:00:09] [%clk 00:06:46]} 25. f4 {[%emt 00:00:03] [%clk 00:05:23]} Rxd3 {[%emt
00:00:10] [%clk 00:06:46]} 26. Re8+ {[%emt 00:00:04] [%clk 00:05:29]} Rxe8
{[%emt 00:00:45] [%clk 00:06:11]} 27. Qxd3 {[%emt 00:00:02] [%clk 00:05:36]} h5
{[%emt 00:00:45] [%clk 00:05:37]} 28. Ne3 {[%emt 00:00:08] [%clk 00:05:38]} Nd4
{[%emt 00:00:08] [%clk 00:05:39]} 29. Kg2 {[%emt 00:00:04] [%clk 00:05:44]} 1-0

[Site "Europe Echecs"]

[Event "Championnat d'Europe Rapide"]
[Date "2024.12.07"]
[White "Hlebec, Darko"]
[Black "Larkin, Vladyslav"]
[WhiteElo "1917"]
[BlackElo "2449"]
[Round "1.52"]
[Result "0-1"]
[TimeControl "900+10"]

1. d4 {[%clk 00:15:19]} d6 {[%emt 00:00:06] [%clk 00:15:15]} 2. Nf3 {[%emt
00:00:07] [%clk 00:15:24]} Bg4 {[%clk 00:15:23]} 3. e3 {[%emt 00:00:04] [%clk
00:15:30]} c6 {[%emt 00:00:05] [%clk 00:15:28]} 4. Be2 {[%emt 00:00:05] [%clk
00:15:34]} Nd7 {[%emt 00:00:03] [%clk 00:15:35]} 5. h3 {[%emt 00:00:02] [%clk
00:15:41]} Bh5 {[%emt 00:00:02] [%clk 00:15:43]} 6. b3 {[%emt 00:00:05] [%clk
00:15:46]} Ngf6 {[%emt 00:00:23] [%clk 00:15:30]} 7. Bb2 {[%emt 00:00:08] [%clk
00:15:48]} e6 {[%emt 00:00:43] [%clk 00:14:57]} 8. c4 {[%emt 00:00:08] [%clk
00:15:50]} d5 {[%emt 00:00:02] [%clk 00:15:04]} 9. Nbd2 {[%emt 00:00:59] [%clk
00:15:01]} Bd6 {[%emt 00:00:06] [%clk 00:15:09]} 10. Ne5 {[%emt 00:00:57] [%clk
00:14:14]} Bxe2 {[%emt 00:01:20] [%clk 00:13:59]} 11. Qxe2 {[%emt 00:00:08]
[%clk 00:14:16]} Bb4 {[%emt 00:00:33] [%clk 00:13:36]} 12. O-O {[%emt 00:01:00]
[%clk 00:13:26]} a5 {[%emt 00:00:54] [%clk 00:12:52]} 13. Nxd7 {[%emt 00:00:17]
[%clk 00:13:19]} Qxd7 {[%emt 00:00:25] [%clk 00:12:37]} 14. Nf3 {[%emt 00:00:12]
[%clk 00:13:17]} O-O {[%emt 00:00:03] [%clk 00:12:44]} 15. Ne5 {[%emt 00:00:27]
[%clk 00:13:00]} Qe7 {[%emt 00:00:01] [%clk 00:12:53]} 16. c5 {[%emt 00:00:21]
[%clk 00:12:49]} a4 {[%emt 00:00:05] [%clk 00:12:59]} 17. a3 {[%emt 00:00:11]
[%clk 00:12:48]} Ba5 {[%clk 00:13:08]} 18. b4 {[%emt 00:00:52] [%clk 00:12:06]}
Bc7 {[%emt 00:00:01] [%clk 00:13:17]} 19. Nf3 {[%emt 00:00:11] [%clk 00:12:04]}
Nd7 {[%emt 00:00:26] [%clk 00:13:01]} 20. Qd2 {[%emt 00:00:42] [%clk 00:11:32]}
f6 {[%emt 00:00:43] [%clk 00:12:28]} 21. Rfe1 {[%emt 00:00:39] [%clk 00:11:04]}
f5 {[%emt 00:00:57] [%clk 00:11:41]} 22. Rab1 {[%emt 00:00:48] [%clk 00:10:26]}
Nf6 {[%emt 00:00:02] [%clk 00:11:49]} 23. Qd3 {[%emt 00:00:18] [%clk 00:10:18]}
Ne4 {[%emt 00:00:30] [%clk 00:11:28]} 24. Nd2 {[%emt 00:00:22] [%clk 00:10:07]}
Qh4 {[%emt 00:00:32] [%clk 00:11:06]} 25. Rf1 {[%emt 00:02:12] [%clk 00:08:05]}
Rf6 {[%emt 00:00:09] [%clk 00:11:07]} 26. f4 {[%emt 00:02:50] [%clk 00:05:24]}
g5 {[%emt 00:00:07] [%clk 00:11:09]} 27. Nf3 {[%emt 00:00:27] [%clk 00:05:07]}
Qg3 {[%emt 00:00:16] [%clk 00:11:04]} 28. Nxg5 {[%emt 00:00:50] [%clk 00:04:27]}
Nxg5 {[%emt 00:03:42] [%clk 00:07:32]} 29. fxg5 {[%emt 00:00:03] [%clk
00:04:34]} Rg6 {[%emt 00:00:01] [%clk 00:07:41]} 30. Qe2 {[%emt 00:01:35] [%clk
00:03:09]} Qh2+ {[%emt 00:00:12] [%clk 00:07:39]} 31. Kf2 {[%emt 00:00:03] [%clk
00:03:16]} Bg3+ {[%emt 00:00:07] [%clk 00:07:42]} 32. Kf3 {[%emt 00:00:03] [%clk
00:03:23]} Bh4 {[%emt 00:00:01] [%clk 00:07:51]} 33. Qd3 {[%emt 00:00:34] [%clk
00:03:00]} Rxg5 {[%emt 00:00:03] [%clk 00:07:58]} 34. Rg1 {[%emt 00:00:15] [%clk
00:02:55]} Qg3+ {[%emt 00:00:05] [%clk 00:08:02]} 35. Ke2 {[%emt 00:00:05] [%clk
00:03:00]} Qf2+ {[%clk 00:08:11]}

[Site "Europe Echecs"]

[Event "Championnat d'Europe Rapide"]
[Date "2024.12.07"]
[White "Peyrer, Konstantin"]
[Black "Dilji, Emell"]
[WhiteElo "2440"]
[BlackElo "1830"]
[Round "1.53"]
[Result "1-0"]
[TimeControl "900+10"]

1. e4 {[%emt 00:00:02] [%clk 00:15:17]} e5 {[%emt 00:00:04] [%clk 00:15:18]} 2.
Nf3 {[%clk 00:15:25]} Nc6 {[%emt 00:00:03] [%clk 00:15:26]} 3. Bb5 {[%emt
00:00:04] [%clk 00:15:32]} Nge7 {[%emt 00:00:05] [%clk 00:15:29]} 4. Nc3 {[%emt
00:00:07] [%clk 00:15:35]} g6 {[%emt 00:00:13] [%clk 00:15:26]} 5. d4 {[%emt
00:00:12] [%clk 00:15:33]} exd4 {[%emt 00:00:24] [%clk 00:15:11]} 6. Nd5 {[%emt
00:00:02] [%clk 00:15:41]} Bg7 {[%emt 00:00:24] [%clk 00:14:57]} 7. Bg5 {[%emt
00:00:05] [%clk 00:15:44]} f6 {[%emt 00:06:43] [%clk 00:08:27]} 8. Nxf6+ {[%emt
00:00:07] [%clk 00:15:46]} Bxf6 {[%emt 00:00:06] [%clk 00:08:31]} 9. Bxf6 {[%emt
00:00:03] [%clk 00:15:53]} O-O {[%emt 00:00:09] [%clk 00:08:32]} 10. Bc4+ {[%emt
00:00:03] [%clk 00:16:00]} d5 {[%emt 00:01:19] [%clk 00:07:25]} 11. Bxd5+ {[%emt
00:00:02] [%clk 00:16:07]} Rf7 {[%emt 00:00:05] [%clk 00:07:30]} 12. Ng5 {[%emt
00:00:13] [%clk 00:16:03]} Qd6 {[%emt 00:01:47] [%clk 00:05:53]} 13. Bxf7+
{[%emt 00:00:05] [%clk 00:16:09]} Kf8 {[%emt 00:00:04] [%clk 00:05:59]} 14. Qf3
{[%emt 00:00:02] [%clk 00:16:16]} 1-0

[Site "Europe Echecs"]

[Event "Championnat d'Europe Rapide"]
[Date "2024.12.07"]
[White "Pavleski, Nikola"]
[Black "Paichadze, Luka"]
[WhiteElo "1955"]
[BlackElo "2532"]
[Round "1.54"]
[Result "0-1"]
[TimeControl "900+10"]

1. e4 {[%emt 00:00:02] [%clk 00:15:16]} c6 {[%emt 00:00:04] [%clk 00:15:19]} 2.
d4 {[%emt 00:00:03] [%clk 00:15:22]} d5 {[%emt 00:00:01] [%clk 00:15:28]} 3. e5
{[%emt 00:00:03] [%clk 00:15:30]} Bf5 {[%emt 00:00:01] [%clk 00:15:36]} 4. h4
{[%emt 00:00:02] [%clk 00:15:37]} h5 {[%emt 00:00:02] [%clk 00:15:44]} 5. c4
{[%emt 00:00:03] [%clk 00:15:44]} e6 {[%emt 00:00:02] [%clk 00:15:52]} 6. Nc3
{[%emt 00:00:02] [%clk 00:15:52]} dxc4 {[%emt 00:00:33] [%clk 00:15:29]} 7. Bxc4
{[%emt 00:00:08] [%clk 00:15:53]} Nd7 {[%emt 00:00:03] [%clk 00:15:37]} 8. Nge2
{[%emt 00:00:30] [%clk 00:15:32]} Nb6 {[%emt 00:00:03] [%clk 00:15:45]} 9. Bb3
{[%emt 00:00:57] [%clk 00:14:45]} Be7 {[%emt 00:00:24] [%clk 00:15:32]} 10. Ng3
{[%emt 00:01:08] [%clk 00:13:47]} Bg6 {[%emt 00:00:41] [%clk 00:15:01]} 11. Nge4
{[%emt 00:01:09] [%clk 00:12:48]} Nd5 {[%emt 00:00:42] [%clk 00:14:29]} 12. Nxd5
{[%emt 00:03:11] [%clk 00:09:46]} cxd5 {[%emt 00:02:12] [%clk 00:12:28]} 13. Ng5
{[%emt 00:03:34] [%clk 00:06:21]} Nh6 {[%emt 00:00:08] [%clk 00:12:30]} 14. Ba4+
{[%emt 00:00:21] [%clk 00:06:10]} Kf8 {[%emt 00:00:03] [%clk 00:12:38]} 15. O-O
{[%emt 00:01:51] [%clk 00:04:28]} Nf5 {[%emt 00:00:08] [%clk 00:12:41]} 16. g3
{[%emt 00:00:11] [%clk 00:04:27]} Rc8 {[%emt 00:01:12] [%clk 00:11:40]} 17. Be3
{[%emt 00:00:54] [%clk 00:03:42]} Nxe3 {[%emt 00:00:45] [%clk 00:11:05]} 18.
Nxe6+ {[%emt 00:01:40] [%clk 00:02:12]} fxe6 {[%emt 00:00:02] [%clk 00:11:13]}
19. fxe3+ {[%emt 00:00:02] [%clk 00:02:19]} Kg8 {[%emt 00:00:17] [%clk
00:11:07]} 20. Qe2 {[%emt 00:01:01] [%clk 00:01:28]} Kh7 {[%emt 00:00:34] [%clk
00:10:43]} 21. Rac1 {[%emt 00:00:04] [%clk 00:01:33]} Rf8 {[%emt 00:00:17] [%clk
00:10:36]} 22. Bc2 {[%emt 00:00:40] [%clk 00:01:03]} Rxf1+ {[%emt 00:00:21]
[%clk 00:10:25]} 23. Kxf1 {[%emt 00:00:01] [%clk 00:01:12]} Rxc2 {[%emt
00:02:46] [%clk 00:07:50]} 24. Rxc2 {[%emt 00:00:07] [%clk 00:01:15]} Bxc2
{[%emt 00:00:02] [%clk 00:07:58]} 25. Qxc2+ {[%emt 00:00:23] [%clk 00:01:01]} g6
{[%emt 00:00:02] [%clk 00:08:07]} 26. Kg2 {[%emt 00:00:19] [%clk 00:00:51]} Qd7
{[%emt 00:00:34] [%clk 00:07:43]} 27. b3 {[%emt 00:00:41] [%clk 00:00:20]} Bf8
{[%emt 00:00:06] [%clk 00:07:46]} 28. Qe2 {[%clk 00:00:21]} Bh6 {[%emt 00:00:16]
[%clk 00:07:50]} 29. Kf3 {[%clk 00:00:22]} a6 {[%emt 00:00:13] [%clk 00:07:57]}
30. Kg2 {[%clk 00:00:24]} Qf7 {[%emt 00:00:33] [%clk 00:07:41]} 31. Qd3 {[%clk
00:00:13]} Qe8 {[%emt 00:01:30] [%clk 00:06:41]} 32. Qc3 {[%clk 00:00:11]} Qc6
{[%emt 00:00:19] [%clk 00:06:45]} 33. Qd2 {[%clk 00:00:18]} Qc7 {[%emt 00:00:22]
[%clk 00:06:36]} 34. Kf2 {[%clk 00:00:20]} Qf7+ {[%emt 00:00:30] [%clk
00:06:24]} 35. Kg2 {[%clk 00:00:27]} Qf5 {[%emt 00:00:07] [%clk 00:06:31]} 36.
Qc3 {[%clk 00:00:25]} Qe4+ {[%emt 00:00:56] [%clk 00:05:57]} 37. Kf2 {[%clk
00:00:30]} Qf5+ {[%emt 00:01:08] [%clk 00:05:05]} 38. Kg2 {[%clk 00:00:36]} Qf7
{[%emt 00:00:07] [%clk 00:05:11]} 39. Qd2 {[%emt 00:00:28]} g5 40. hxg5 {[%clk
00:00:31]} Bxg5 {[%emt 00:00:01] [%clk 00:05:27]} 41. Qc2+ {[%emt 00:00:15]
[%clk 00:00:25]} Kh6 {[%emt 00:00:14] [%clk 00:05:24]} 42. Qe2 {[%emt 00:00:15]
[%clk 00:00:20]} Qg6 {[%emt 00:00:09] [%clk 00:05:26]} 43. Kf2 {[%emt 00:00:05]
[%clk 00:00:24]} Qf5+ {[%emt 00:00:10] [%clk 00:05:26]} 44. Kg2 {[%emt 00:00:04]
[%clk 00:00:29]} Qe4+ {[%emt 00:00:02] [%clk 00:05:35]} 45. Kf2 {[%emt 00:00:03]
[%clk 00:00:36]} Qh1 {[%emt 00:02:02] [%clk 00:03:42]} 46. Qd3 {[%emt 00:00:29]
[%clk 00:00:17]} Qh2+ {[%emt 00:00:03] [%clk 00:03:49]} 47. Kf3 {[%emt 00:00:02]
[%clk 00:00:25]} Qh3 {[%emt 00:00:21] [%clk 00:03:38]} 48. Kf2 {[%emt 00:00:09]
[%clk 00:00:25]} Qh2+ {[%emt 00:00:32] [%clk 00:03:16]} 49. Kf3 {[%emt 00:00:03]
[%clk 00:00:33]} Qxa2 {[%emt 00:00:23] [%clk 00:03:04]} 50. Qc3 {[%emt 00:00:31]
[%clk 00:00:12]} Qb1 {[%emt 00:00:08] [%clk 00:03:05]} 51. Kf2 {[%emt 00:00:06]
[%clk 00:00:16]} Qe4 {[%emt 00:00:23] [%clk 00:02:52]} 52. Qd2 {[%emt 00:00:09]
[%clk 00:00:19]} Bxe3+ {[%emt 00:00:21] [%clk 00:02:41]} 53. Qxe3+ {[%emt
00:00:04] [%clk 00:00:25]} Qxe3+ {[%emt 00:00:02] [%clk 00:02:50]} 54. Kxe3
{[%emt 00:00:02] [%clk 00:00:32]} a5 {[%emt 00:00:03] [%clk 00:02:57]} 55. Kd3
{[%emt 00:00:28] [%clk 00:00:14]} Kg5 {[%emt 00:00:03] [%clk 00:03:04]} 0-1

[Site "Europe Echecs"]